bitfinex-derivatives/quotes_BTCF0:USTF0_20250720
["timestamp","ask_amount","ask_price","bid_price","bid_amount"]
[1753024649629,0.4436861,118630.0,118620.0,1.47454098]
[1753024649832,0.4436861,118630.0,118620.0,0.2579304]
[1753024650022,0.4436861,118630.0,118620.0,1.26659256]
[1753024650218,0.4436861,118630.0,118620.0,0.90579256]
[1753024650422,0.4436861,118630.0,118620.0,1.12060314]
[1753024651425,0.46215761,118630.0,118620.0,1.12060314]
[1753024652125,0.4436861,118630.0,118620.0,0.30795274]
[1753024652322,0.4436861,118630.0,118620.0,0.65186216]
[1753024652530,0.65849668,118630.0,118620.0,0.5914]
[1753024653329,1.03781118,118630.0,118620.0,0.5914]
[1753024653826,1.03781118,118630.0,118620.0,0.65190895]
[1753024655130,1.03781118,118630.0,118620.0,0.5914]
[1753024655330,1.03781118,118630.0,118620.0,0.65190895]
[1753024655722,1.03781118,118630.0,118620.0,0.5914]
[1753024656231,1.03781118,118630.0,118620.0,0.65190895]
[1753024656431,0.8230006,118630.0,118620.0,0.65190895]
[1753024656635,1.03781118,118630.0,118620.0,0.65190895]
[1753024657925,0.8230006,118630.0,118620.0,0.65190895]
[1753024658125,1.03781118,118630.0,118620.0,0.65190895]
[1753024664028,1.03781118,118630.0,118620.0,0.5914]
[1753024665632,0.67701118,118630.0,118620.0,0.5914]
[1753024665838,1.03781118,118630.0,118620.0,0.5914]
[1753024666033,0.4622006,118630.0,118620.0,1.17477993]
[1753024669040,0.4622006,118630.0,118620.0,0.95996935]
[1753024669240,0.4622006,118630.0,118620.0,1.17477993]
[1753024669539,0.4622006,118630.0,118620.0,0.95996935]
[1753024669741,0.4622006,118630.0,118620.0,1.17477993]
[1753024669939,0.4622006,118630.0,118620.0,0.73770895]
[1753024670739,0.67701118,118630.0,118620.0,0.73770895]
[1753024673045,1.03781118,118630.0,118620.0,0.65190895]
[1753024674646,0.8230006,118630.0,118620.0,0.65190895]
[1753024677548,0.8230006,118630.0,118620.0,0.73307895]
[1753024678147,0.4622006,118630.0,118620.0,1.16693013]
[1753024678651,0.3604606,118630.0,118620.0,1.16693013]
[1753024679449,0.3604606,118630.0,118620.0,1.10642118]
[1753024683149,0.3604606,118630.0,118620.0,1.46722118]
[1753024683445,0.3378606,118630.0,118620.0,0.87982118]
[1753024683650,0.1980306,118630.0,118620.0,1.46718118]
[1753024683851,0.1980306,118630.0,118620.0,1.57326965]
[1753024684453,0.1980306,118630.0,118620.0,0.98590965]
[1753024684651,0.1980306,118630.0,118620.0,1.57326965]
[1753024685651,0.1980306,118630.0,118620.0,1.46718118]
[1753024686154,0.1980306,118630.0,118620.0,0.87982118]
[1753024686354,0.1980306,118630.0,118620.0,1.46718118]
[1753024686855,0.3316906,118630.0,118620.0,1.46718118]
[1753024687947,0.3316906,118630.0,118620.0,1.57326965]
[1753024689857,0.3316906,118630.0,118620.0,1.46718118]
[1753024690560,0.3316906,118630.0,118620.0,1.57326965]
[1753024691060,0.0295145,118630.0,118620.0,1.57326965]
[1753024692561,0.1980308,118630.0,118620.0,1.46718118]
[1753024692951,0.3316908,118630.0,118620.0,1.57326965]
[1753024693859,0.3316908,118630.0,118620.0,1.46718118]
[1753024694553,0.3316908,118630.0,118620.0,1.57326965]
[1753024695248,0.3316908,118630.0,118620.0,1.71306965]
[1753024696855,0.14466,118630.0,118620.0,1.71306965]
[1753024697051,0.14466,118630.0,118620.0,2.06306965]
[1753024697258,0.011,118630.0,118620.0,2.06306965]
[1753024697655,0.1795165,118630.0,118620.0,2.05306965]
[1753024697856,0.011,118630.0,118620.0,2.05306965]
[1753024698254,0.011,118630.0,118620.0,2.02268824]
[1753024698453,0.011,118630.0,118620.0,1.80787709]
[1753024698755,0.011,118630.0,118620.0,2.02268767]
[1753024699059,0.14466,118630.0,118620.0,1.94698118]
[1753024699261,0.14466,118630.0,118620.0,1.7321706]
[1753024699558,0.14466,118630.0,118620.0,1.94698118]
[1753024700060,0.3131765,118630.0,118620.0,1.94698118]
[1753024700459,0.3131765,118630.0,118620.0,1.60698118]
[1753024700860,0.3357665,118630.0,118620.0,1.60698118]
[1753024701060,0.16725,118630.0,118620.0,1.68269187]
[1753024701262,0.16725,118630.0,118620.0,1.60698118]
[1753024701463,0.16725,118630.0,118620.0,1.71306965]
[1753024702557,0.16725,118630.0,118620.0,1.49825907]
[1753024702759,0.3357665,118630.0,118620.0,1.71290965]
[1753024703361,0.16725,118630.0,118620.0,1.71290965]
[1753024703862,0.3357665,118630.0,118620.0,1.71290965]
[1753024705665,0.16725,118630.0,118620.0,1.71290965]
[1753024708166,0.3357668,118630.0,118620.0,1.71290965]
[1753024711765,0.16725,118630.0,118620.0,1.71290965]
[1753024712765,0.3357668,118630.0,118620.0,1.71290965]
[1753024713570,0.16725,118630.0,118620.0,1.60682118]
[1753024713762,0.16725,118630.0,118620.0,1.71298445]
[1753024714676,0.3357668,118630.0,118620.0,1.71298445]
[1753024714875,0.16725,118630.0,118620.0,1.71298445]
[1753024715076,0.3357668,118630.0,118620.0,1.71298445]
[1753024715273,0.16725,118630.0,118620.0,1.71298445]
[1753024716476,0.16725,118630.0,118620.0,1.49817387]
[1753024716677,0.16725,118630.0,118620.0,1.71298445]
[1753024721178,0.16725,118630.0,118620.0,1.82047991]
[1753024725178,0.05343116,118630.0,118620.0,1.82047991]
[1753024725379,0.17343116,118630.0,118620.0,1.71431664]
[1753024725976,0.34194806,118630.0,118620.0,1.71431664]
[1753024727173,0.38914806,118630.0,118620.0,1.71431664]
[1753024730483,0.22063116,118630.0,118620.0,1.71431664]
[1753024731083,0.38914866,118630.0,118620.0,1.71431664]
[1753024731482,0.38914866,118630.0,118620.0,1.82049209]
[1753024734588,0.38914866,118630.0,118620.0,1.49818605]
[1753024734784,0.38914866,118630.0,118620.0,1.82049209]
[1753024735486,0.38914866,118630.0,118620.0,1.71431664]
[1753024735675,0.38914866,118630.0,118620.0,1.82049345]
[1753024735676,0.49143866,118630.0,118620.0,1.82049345]
[1753024736284,0.49143866,118630.0,118620.0,1.23329345]
[1753024736486,0.49143866,118630.0,118620.0,1.21335664]
[1753024736984,0.49143866,118630.0,118620.0,1.28920188]
[1753024737475,0.49143866,118630.0,118620.0,0.70236188]
[1753024737785,0.49143866,118630.0,118620.0,1.28916188]
[1753024738488,0.49143866,118630.0,118620.0,0.96685584]
[1753024738785,0.49143866,118630.0,118620.0,1.28916188]
[1753024739387,0.49143866,118630.0,118620.0,1.21331664]
[1753024739688,0.49143866,118630.0,118620.0,1.68029345]
[1753024740188,0.49143866,118630.0,118620.0,1.31949345]
[1753024740891,0.65259168,118630.0,118620.0,0.75191302]
[1753024741086,1.01339168,118630.0,118620.0,0.59076]
[1753024741288,1.01339168,118630.0,118620.0,0.85808983]
[1753024741790,1.01339168,118630.0,118620.0,0.82772301]
[1753024742492,0.49143866,118630.0,118620.0,1.02928461]
[1753024742987,0.65259168,118630.0,118620.0,1.02928461]
[1753024743188,0.65259168,118630.0,118620.0,1.07907461]
[1753024745496,0.49143866,118630.0,118620.0,1.07907461]
[1753024745696,0.65259168,118630.0,118620.0,1.07907461]
[1753024746399,0.65259168,118630.0,118620.0,1.05927462]
[1753024748193,0.65259168,118630.0,118620.0,1.11986251]
[1753024748393,0.65259168,118630.0,118620.0,1.11986254]
[1753024748587,1.01339168,118630.0,118620.0,1.11986254]
[1753024748892,0.65259168,118630.0,118620.0,1.11986254]
[1753024749595,1.01339168,118630.0,118620.0,1.11986254]
[1753024749991,0.85223866,118630.0,118620.0,1.11986254]
[1753024750296,0.65259168,118630.0,118620.0,1.11986254]
[1753024753494,0.65259168,118630.0,118620.0,1.05927462]
[1753024753700,0.49143866,118630.0,118620.0,1.05927462]
[1753024754000,0.65259168,118630.0,118620.0,1.05927462]
[1753024754403,0.65259168,118630.0,118620.0,1.13508461]
[1753024755201,0.49143866,118630.0,118620.0,1.13508461]
[1753024755394,0.65259168,118630.0,118620.0,1.13508461]
[1753024756197,0.49143866,118630.0,118620.0,1.13508461]
[1753024756402,0.65259168,118630.0,118620.0,1.13508461]
[1753024757001,0.49143866,118630.0,118620.0,1.13508461]
[1753024757199,0.65259168,118630.0,118620.0,1.13508461]
[1753024757405,0.65259168,118630.0,118620.0,1.29623763]
[1753024757804,0.65259168,118630.0,118620.0,1.37891763]
[1753024758302,0.65259168,118630.0,118620.0,1.21776461]
[1753024758897,1.01339168,118630.0,118620.0,1.21776461]
[1753024761303,1.01339168,118630.0,118620.0,1.13508461]
[1753024762505,1.01339168,118630.0,118620.0,0.96655301]
[1753024762704,1.01339168,118630.0,118620.0,0.91676301]
[1753024763303,1.01439168,118630.0,118620.0,0.75360999]
[1753024763505,1.01539168,118630.0,118620.0,0.91276301]
[1753024764704,1.01539168,118630.0,118620.0,0.96255301]
[1753024765706,1.01539168,118630.0,118620.0,1.13108441]
[1753024766804,1.01539168,118630.0,118620.0,0.96255301]
[1753024768909,1.01539168,118630.0,118620.0,0.96219301]
[1753024770006,1.01539168,118630.0,118620.0,0.96957139]
[1753024770210,1.01539168,118630.0,118620.0,1.13072441]
[1753024771105,1.01539168,118630.0,118620.0,0.96219301]
[1753024771610,1.01539168,118630.0,118620.0,1.13072431]
[1753024771807,1.01539168,118630.0,118620.0,0.96219301]
[1753024772008,1.01539168,118630.0,118620.0,1.13072431]
[1753024773110,1.01539168,118630.0,118620.0,0.96219301]
[1753024774309,1.01539168,118630.0,118620.0,1.13072441]
[1753024775715,1.01539168,118630.0,118620.0,0.96219301]
[1753024776612,1.01539168,118630.0,118620.0,1.04181301]
[1753024777106,1.01539168,118630.0,118620.0,0.88065999]
[1753024777309,0.65459168,118630.0,118620.0,1.04181301]
[1753024780310,0.65459168,118630.0,118620.0,0.96219301]
[1753024781411,1.01539168,118630.0,118620.0,0.75124999]
[1753024782007,1.01539168,118630.0,118620.0,0.66220999]
[1753024782202,1.1765447,118630.0,118620.0,0.66220999]
[1753024782408,1.1765447,118630.0,118620.0,0.64709135]
[1753024782607,0.3883411,118620.0,118610.0,0.07580999]
[1753024782803,1.09762434,118620.0,118610.0,0.07580999]
[1753024783012,1.74969941,118620.0,118610.0,0.07580999]
[1753024783213,1.58854639,118620.0,118610.0,0.07580999]
[1753024783412,0.4005755,118610.0,118600.0,0.67927105]
[1753024783714,1.06539852,118610.0,118600.0,0.60346106]
[1753024784113,0.9042455,118610.0,118600.0,0.60346106]
[1753024784312,1.06539852,118610.0,118600.0,0.60346106]
[1753024784615,1.06539852,118610.0,118600.0,0.01734106]
[1753024784816,1.06539852,118610.0,118600.0,0.58616]
[1753024785218,1.06539852,118610.0,118600.0,0.61925]
[1753024785713,1.06539852,118610.0,118600.0,0.62225]
[1753024785923,1.06639852,118610.0,118600.0,0.25595302]
[1753024786217,1.06639852,118610.0,118600.0,0.86841566]
[1753024786410,1.06739852,118610.0,118600.0,0.86741566]
[1753024786610,1.06839852,118610.0,118600.0,0.86641566]
[1753024787820,0.9072455,118610.0,118600.0,0.86641566]
[1753024788020,1.06839852,118610.0,118600.0,0.86641566]
[1753024788415,1.06839852,118610.0,118600.0,0.91227566]
[1753024790215,1.06839852,118610.0,118600.0,0.70526264]
[1753024791223,0.9072455,118610.0,118600.0,0.70526264]
[1753024791522,1.06839852,118610.0,118600.0,0.70526264]
[1753024792119,1.06839852,118610.0,118600.0,0.86641566]
[1753024792322,1.06839852,118610.0,118600.0,0.91227566]
[1753024792518,1.06839852,118610.0,118600.0,0.75112264]
[1753024792720,1.06839852,118610.0,118600.0,0.91227566]
[1753024793411,0.9072455,118610.0,118600.0,0.91227566]
[1753024793608,0.9072455,118610.0,118600.0,1.32160818]
[1753024793920,0.9072455,118610.0,118600.0,1.15304868]
[1753024795020,1.06839852,118610.0,118600.0,1.15304868]
[1753024795520,1.06839852,118610.0,118600.0,0.99189566]
[1753024796214,1.06839852,118610.0,118600.0,0.91227566]
[1753024799422,1.06839852,118610.0,118600.0,0.75112264]
[1753024799624,1.06839852,118610.0,118600.0,0.86641566]
[1753024800320,1.06839852,118610.0,118600.0,0.91237566]
[1753024800724,1.06839852,118610.0,118600.0,0.91233566]
[1753024801024,1.06839852,118610.0,118600.0,0.99786214]
[1753024801324,1.06839852,118610.0,118600.0,1.32016818]
[1753024802222,1.06839852,118610.0,118600.0,1.15160868]
[1753024802525,1.06839852,118610.0,118600.0,1.15901516]
[1753024803522,0.2915455,118610.0,118600.0,1.74148833]
[1753024803721,0.2915453,118610.0,118600.0,1.74148833]
[1753024804720,0.2915453,118610.0,118600.0,1.68096818]
[1753024805226,0.123,118610.0,118600.0,1.68096818]
[1753024805413,0.2915453,118610.0,118600.0,1.68096818]
[1753024806421,0.2915453,118610.0,118600.0,1.75677817]
[1753024806622,0.2915453,118610.0,118600.0,1.68096818]
[1753024807124,0.2915453,118610.0,118600.0,1.57361313]
[1753024807824,0.123,118610.0,118600.0,1.57361313]
[1753024808626,0.123,118610.0,118600.0,1.78856412]
[1753024809219,0.123,118610.0,118600.0,1.89474093]
[1753024810023,0.2915454,118610.0,118600.0,1.89474093]
[1753024811325,0.2915454,118610.0,118600.0,1.67978994]
[1753024814127,0.123,118610.0,118600.0,1.67978994]
[1753024814723,0.1715454,118610.0,118600.0,1.67978994]
[1753024815029,0.460767,118630.0,118620.0,0.2096912]
[1753024815220,0.433597,118630.0,118620.0,1.44869789]
[1753024815420,0.433597,118630.0,118620.0,1.4638331]
[1753024815616,0.433597,118630.0,118620.0,1.38815704]
[1753024816830,0.466107,118630.0,118620.0,1.38815704]
[1753024817920,0.466107,118630.0,118620.0,1.38915704]
[1753024818325,0.466107,118630.0,118620.0,1.39015704]
[1753024818725,0.519797,118630.0,118620.0,1.39015704]
[1753024818933,0.531457,118630.0,118620.0,0.80423704]
[1753024819128,0.531457,118630.0,118620.0,1.37428704]
[1753024819324,0.531457,118630.0,118620.0,1.01348704]
[1753024819533,0.531457,118630.0,118620.0,1.39011704]
[1753024820130,0.531457,118630.0,118620.0,1.02931704]
[1753024820333,0.531457,118630.0,118620.0,0.81436605]
[1753024820528,0.531457,118630.0,118620.0,1.39011704]
[1753024820732,0.531457,118630.0,118620.0,1.02931704]
[1753024821135,0.531457,118630.0,118620.0,1.39011704]
[1753024821434,0.531457,118630.0,118620.0,1.37428704]
[1753024821832,0.531457,118630.0,118620.0,1.02931704]
[1753024822830,0.531457,118630.0,118620.0,1.02980704]
[1753024823031,0.433597,118630.0,118620.0,1.39060704]
[1753024823232,0.410767,118630.0,118620.0,1.39060704]
[1753024823628,0.433597,118630.0,118620.0,1.39060704]
[1753024824931,0.433597,118630.0,118620.0,1.4662831]
[1753024825735,0.433597,118630.0,118620.0,1.1054831]
[1753024827542,0.464427,118630.0,118620.0,1.1054831]
[1753024828342,0.518117,118630.0,118620.0,1.1054831]
[1753024828845,0.529437,118630.0,118620.0,1.1054831]
[1753024833246,0.529437,118630.0,118620.0,1.1057931]
[1753024836238,0.529437,118630.0,118620.0,0.89084211]
[1753024836444,0.529437,118630.0,118620.0,1.1057931]
[1753024837847,0.529437,118630.0,118620.0,1.1053031]
[1753024838547,0.529437,118630.0,118620.0,1.4663931]
[1753024840548,0.529437,118630.0,118620.0,1.1055931]
[1753024840749,0.529437,118630.0,118620.0,1.4663931]
[1753024841547,0.529437,118630.0,118620.0,1.1055931]
[1753024842451,0.529437,118630.0,118620.0,0.89064211]
[1753024842750,0.529437,118630.0,118620.0,1.1055931]
[1753024843651,0.529437,118630.0,118620.0,1.1053031]
[1753024844050,0.529437,118630.0,118620.0,0.89035211]
[1753024844352,0.529437,118630.0,118620.0,1.1053031]
[1753024844948,0.529437,118630.0,118620.0,1.02962704]
[1753024845147,0.529437,118630.0,118620.0,1.13580385]
[1753024845751,0.529437,118630.0,118620.0,0.96727265]
[1753024846054,0.529437,118630.0,118620.0,0.90502306]
[1753024846550,0.529437,118630.0,118620.0,0.73618166]
[1753024846855,0.74438799,118630.0,118620.0,0.71085166]
[1753024847753,0.74438799,118630.0,118620.0,0.87938306]
[1753024848159,0.529437,118630.0,118620.0,0.95525068]
[1753024848351,0.529437,118630.0,118620.0,0.84907387]
[1753024849157,0.529437,118630.0,118620.0,0.87440387]
[1753024850459,0.529437,118630.0,118620.0,0.87471387]
[1753024850659,0.529437,118630.0,118620.0,1.08966486]
[1753024855354,0.529437,118630.0,118620.0,1.10549486]
[1753024860457,0.529437,118630.0,118620.0,1.02962724]
[1753024861975,0.529437,118630.0,118620.0,1.13580405]
[1753024862669,0.529437,118630.0,118620.0,1.11997405]
[1753024863972,0.529437,118630.0,118620.0,1.01379724]
[1753024864473,0.529437,118630.0,118620.0,1.0896572]
[1753024867177,0.529437,118630.0,118620.0,0.87470621]
[1753024867378,0.529437,118630.0,118620.0,1.0896572]
[1753024867781,0.529437,118630.0,118620.0,1.1054872]
[1753024868572,0.529437,118630.0,118620.0,0.5037772]
[1753024868772,0.529437,118630.0,118620.0,1.0890572]
[1753024868972,0.529437,118630.0,118620.0,0.9205258]
[1753024869377,0.549437,118630.0,118620.0,0.9205258]
[1753024869779,0.549437,118630.0,118620.0,1.0890573]
[1753024869979,0.56844745,118630.0,118620.0,0.70557481]
[1753024870180,0.56844745,118630.0,118620.0,0.9205258]
[1753024870382,0.56844745,118630.0,118620.0,1.0890573]
[1753024871281,0.56844745,118630.0,118620.0,1.02797033]
[1753024871684,0.72964521,118630.0,118620.0,0.70557481]
[1753024871886,0.72964521,118630.0,118620.0,0.86677257]
[1753024872181,0.56844745,118630.0,118620.0,0.86677257]
[1753024872485,0.56844745,118630.0,118620.0,1.03530407]
[1753024872884,0.56844745,118630.0,118620.0,0.45002407]
[1753024873077,0.56844745,118630.0,118620.0,1.03522407]
[1753024873279,0.56844745,118630.0,118620.0,0.87402631]
[1753024873676,1.09044521,118630.0,118620.0,0.11998481]
[1753024873877,1.09044521,118630.0,118620.0,0.60399485]
[1753024874076,1.25164297,118630.0,118620.0,0.67986723]
[1753024875086,1.25164297,118630.0,118620.0,0.60399485]
[1753024875391,1.14426438,118630.0,118620.0,0.66466883]
[1753024876284,1.14426438,118630.0,118620.0,0.07946883]
[1753024879695,0.2647715,118620.0,118610.0,0.58516]
[1753024879890,1.12059843,118620.0,118610.0,0.58516]
[1753024881291,1.12059843,118620.0,118610.0,0.58716]
[1753024881594,1.12059843,118620.0,118610.0,0.6044377]
[1753024882992,1.12059843,118620.0,118610.0,0.0192777]
[1753024883797,1.12059843,118620.0,118610.0,0.0212777]
[1753024886998,1.70571843,118620.0,118610.0,0.0212777]
[1753024890296,1.70571843,118620.0,118610.0,0.08183802]
[1753024890496,1.70571843,118620.0,118610.0,0.0212777]
[1753024891500,0.9055815,118620.0,118610.0,0.0212777]
[1753024895703,1.12059843,118620.0,118610.0,0.0212777]
[1753024895910,0.9055815,118620.0,118610.0,0.0212777]
[1753024897006,0.75979843,118620.0,118610.0,0.0212777]
[1753024897192,0.7060276,118620.0,118610.0,0.1825238]
[1753024898004,0.7060276,118620.0,118610.0,0.24308412]
[1753024898298,1.0668276,118620.0,118610.0,0.24308412]
[1753024898603,1.2280737,118620.0,118610.0,0.08183802]
[1753024898997,1.2280737,118620.0,118610.0,0.24308412]
[1753024899197,1.2280737,118620.0,118610.0,0.26416952]
[1753024899904,1.0668276,118620.0,118610.0,0.26416952]
[1753024901208,1.2280737,118620.0,118610.0,0.26416952]
[1753024901398,0.9055815,118620.0,118610.0,0.26416952]
[1753024901599,1.2280737,118620.0,118610.0,0.26416952]
[1753024901798,1.0668276,118620.0,118610.0,0.26416952]
[1753024902198,1.0668276,118620.0,118610.0,0.10292342]
[1753024902399,1.0668276,118620.0,118610.0,0.26416952]
[1753024902595,0.9055815,118620.0,118610.0,0.44452502]
[1753024902907,0.9055815,118620.0,118610.0,0.77302112]
[1753024903101,0.9055815,118620.0,118610.0,0.46584098]
[1753024903307,0.9055815,118620.0,118610.0,0.78833318]
[1753024904004,0.4257015,118620.0,118610.0,1.14913318]
[1753024905305,0.4257015,118620.0,118610.0,1.04154867]
[1753024906599,0.4257015,118620.0,118610.0,0.96567629]
[1753024909511,0.4502415,118620.0,118610.0,0.96567629]
[1753024911809,0.5353715,118620.0,118610.0,0.96567629]
[1753024912206,0.5353715,118620.0,118610.0,0.7507686]
[1753024912409,0.5476815,118620.0,118610.0,0.76060098]
[1753024912600,0.5476815,118620.0,118610.0,0.73760098]
[1753024912804,0.5476815,118620.0,118610.0,1.32440098]
[1753024913004,0.5476815,118620.0,118610.0,1.2485286]
[1753024914013,0.5476815,118620.0,118610.0,1.48643629]
[1753024914214,0.5476815,118620.0,118610.0,1.61251867]
[1753024916513,0.5476815,118620.0,118610.0,1.25171867]
[1753024920419,0.5476815,118620.0,118610.0,1.31229507]
[1753024920614,0.5476815,118620.0,118610.0,1.23642269]
[1753024922119,0.5476815,118620.0,118610.0,0.8027595]
[1753024922314,0.5476815,118620.0,118610.0,0.99466719]
[1753024922513,0.5476815,118620.0,118610.0,0.35498719]
[1753024922715,1.12338919,118620.0,118610.0,0.6890195]
[1753024923513,1.12338919,118620.0,118610.0,0.70419548]
[1753024923714,1.12338919,118620.0,118610.0,0.68892012]
[1753024925023,1.70934919,118620.0,118610.0,0.10296012]
[1753024925411,1.70934919,118620.0,118610.0,0.0423631]
[1753024925623,1.70934919,118620.0,118610.0,0.10296012]
[1753024926322,1.70934919,118620.0,118610.0,0.0423631]
[1753024930831,1.4944415,118620.0,118610.0,0.0423631]
[1753024931032,1.70934919,118620.0,118610.0,0.0423631]
[1753024932130,1.4944415,118620.0,118610.0,0.0423631]
[1753024932332,1.70934919,118620.0,118610.0,0.0423631]
[1753024933136,1.70934919,118620.0,118610.0,0.10296012]
[1753024933329,1.4944415,118620.0,118610.0,0.10296012]
[1753024933837,1.70934919,118620.0,118610.0,0.10296012]
[1753024934637,1.4944415,118620.0,118610.0,0.10296012]
[1753024934828,0.9084815,118620.0,118610.0,0.10296012]
[1753024935028,1.4936015,118620.0,118610.0,0.43061781]
[1753024935234,0.9084815,118620.0,118610.0,0.43061781]
[1753024935435,0.9084815,118620.0,118610.0,0.21571012]
[1753024936032,0.9084815,118620.0,118610.0,0.19114012]
[1753024936524,0.9084815,118620.0,118610.0,0.44738582]
[1753024936741,0.5476815,118620.0,118610.0,0.27884012]
[1753024936931,0.5476815,118620.0,118610.0,0.49374781]
[1753024937127,0.5476815,118620.0,118610.0,0.43315079]
[1753024937335,0.5476815,118620.0,118610.0,0.66226467]
[1753024937936,0.5476815,118620.0,118610.0,0.60169649]
[1753024938135,0.5476815,118620.0,118610.0,0.3867888]
[1753024938327,0.5476815,118620.0,118610.0,0.60169649]
[1753024938525,0.5476815,118620.0,118610.0,0.67756887]
[1753024939838,0.5476815,118620.0,118610.0,0.46266118]
[1753024940041,0.5476815,118620.0,118610.0,0.67756887]
[1753024940636,0.5476815,118620.0,118610.0,0.46266118]
[1753024940834,0.5476815,118620.0,118610.0,0.67756887]
[1753024941632,0.5476815,118620.0,118610.0,0.46266118]
[1753024941834,0.5476815,118620.0,118610.0,0.67756887]
[1753024944938,0.5476815,118620.0,118610.0,0.66173887]
[1753024945332,0.5476815,118620.0,118610.0,0.61443887]
[1753024946335,0.5476815,118620.0,118610.0,1.20607877]
[1753024948437,0.5476815,118620.0,118610.0,0.99117108]
[1753024948833,0.5476815,118620.0,118610.0,1.20607877]
[1753024951734,0.5476815,118620.0,118610.0,1.25052877]
[1753024952339,0.5476815,118620.0,118610.0,1.03562108]
[1753024952741,0.5476815,118620.0,118610.0,1.25052877]
[1753024953140,0.70890689,118620.0,118610.0,1.19684647]
[1753024954044,0.5476815,118620.0,118610.0,1.19684647]
[1753024954244,0.70890689,118620.0,118610.0,1.19684647]
[1753024954647,0.70890689,118620.0,118610.0,1.03562108]
[1753024954847,0.70890689,118620.0,118610.0,1.19684647]
[1753024957546,0.70890689,118620.0,118610.0,1.03562108]
[1753024957747,0.70890689,118620.0,118610.0,1.19684647]
[1753024959252,0.5476815,118620.0,118610.0,1.19684647]
[1753024959652,0.70890689,118620.0,118610.0,1.19684647]
[1753024960244,0.5476815,118620.0,118610.0,1.19684647]
[1753024960550,0.5476815,118620.0,118610.0,1.21267647]
[1753024961448,0.5476815,118620.0,118610.0,0.9755787]
[1753024961652,0.5476815,118620.0,118610.0,1.05136511]
[1753024961847,0.5476815,118620.0,118610.0,1.2125905]
[1753024962452,0.5476815,118620.0,118610.0,1.13680409]
[1753024965051,0.9084815,118620.0,118610.0,1.13680409]
[1753024965452,0.5476815,118620.0,118610.0,1.08175551]
[1753024965953,0.5476815,118620.0,118610.0,1.2429809]
[1753024966453,0.5476815,118620.0,118610.0,1.08175551]
[1753024966653,0.5476815,118620.0,118610.0,1.2429809]
[1753024966952,0.5476815,118620.0,118610.0,1.21265999]
[1753024967153,0.5476815,118620.0,118610.0,1.13680409]
[1753024967549,0.5476815,118620.0,118610.0,1.21266967]
[1753024970754,0.5476815,118620.0,118610.0,1.05144428]
[1753024970955,0.5476815,118620.0,118610.0,1.21266967]
[1753024971756,0.5476815,118620.0,118610.0,1.05144428]
[1753024971950,0.5476815,118620.0,118610.0,1.21266967]
[1753024973449,0.5476815,118620.0,118610.0,1.05144428]
[1753024973649,0.5476815,118620.0,118610.0,1.21266967]
[1753024975053,0.5476815,118620.0,118610.0,0.98384407]
[1753024975258,0.70890689,118620.0,118610.0,0.98384407]
[1753024975856,0.5476815,118620.0,118610.0,0.39220407]
[1753024976061,0.70890689,118620.0,118610.0,0.95687407]
[1753024976748,0.70890689,118620.0,118610.0,0.22926868]
[1753024976955,0.5476815,118620.0,118610.0,0.81850868]
[1753024977156,0.87013228,118620.0,118610.0,0.79564868]
[1753024977358,0.70890689,118620.0,118610.0,0.95687407]
[1753024977554,0.5476815,118620.0,118610.0,0.79564868]
[1753024977758,0.70890689,118620.0,118610.0,0.95687407]
[1753024978060,0.70890689,118620.0,118610.0,1.14827927]
[1753024978254,0.5476815,118620.0,118610.0,1.18991927]
[1753024978454,0.5476815,118620.0,118610.0,1.20574927]
[1753024978857,0.4502415,118620.0,118610.0,1.20574927]
[1753024979263,0.4502415,118620.0,118610.0,1.12988369]
[1753024979457,0.5329615,118620.0,118610.0,1.2360605]
[1753024979855,0.4257015,118620.0,118610.0,1.39728589]
[1753024980057,0.25717,118620.0,118610.0,1.39728589]
[1753024980256,0.25717,118620.0,118610.0,1.29110908]
[1753024980464,0.25717,118620.0,118610.0,1.72778927]
[1753024980762,0.425701,118620.0,118610.0,1.72778927]
[1753024981066,0.425701,118620.0,118610.0,1.56656388]
[1753024981362,0.448411,118620.0,118610.0,1.56656388]
[1753024982463,0.542321,118620.0,118610.0,1.56656388]
[1753024982964,0.542321,118620.0,118610.0,1.20576388]
[1753024983264,0.542321,118620.0,118610.0,1.25950044]
[1753024984662,0.542321,118620.0,118610.0,1.40533849]
[1753024984864,0.542321,118620.0,118610.0,1.18362025]
[1753024985064,0.542321,118620.0,118610.0,1.54442025]
[1753024985463,0.542321,118620.0,118610.0,1.3294583]
[1753024985763,0.542321,118620.0,118610.0,1.54442025]
[1753024985964,0.542321,118620.0,118610.0,1.65059706]
[1753024986964,0.542321,118620.0,118610.0,1.28979706]
[1753024987466,0.542321,118620.0,118610.0,1.07483511]
[1753024987667,0.542321,118620.0,118610.0,1.28979706]
[1753024990065,0.542321,118620.0,118610.0,1.07483511]
[1753024990264,0.542321,118620.0,118610.0,1.28979706]
[1753024990774,0.542321,118620.0,118610.0,1.18362025]
[1753024991471,0.542321,118620.0,118610.0,0.9686583]
[1753024991676,0.542321,118620.0,118610.0,1.18362025]
[1753024992473,0.542321,118620.0,118610.0,0.9686583]
[1753024992772,0.542321,118620.0,118610.0,1.18362025]
[1753024992973,0.542321,118620.0,118610.0,1.25947547]
[1753024993474,0.542321,118620.0,118610.0,1.04451352]
[1753024993667,0.542321,118620.0,118610.0,1.25947547]
[1753024998377,0.542321,118620.0,118610.0,1.18362025]
[1753024998572,0.542321,118620.0,118610.0,1.07483511]
[1753024998780,0.542321,118620.0,118610.0,1.28979706]
[1753024999479,0.542321,118620.0,118610.0,1.07483511]
[1753024999778,0.542321,118620.0,118610.0,1.28979706]
[1753025000380,0.542321,118620.0,118610.0,1.07483511]
[1753025000577,0.542321,118620.0,118610.0,0.23671991]
[1753025000782,0.75728295,118620.0,118610.0,0.23671991]
[1753025001084,1.11808295,118620.0,118610.0,0.7195831]
[1753025002783,1.11808295,118620.0,118610.0,0.7196809]
[1753025003781,0.542321,118620.0,118610.0,0.8882269]
[1753025003981,0.542321,118620.0,118610.0,1.10318885]
[1753025004282,0.542321,118620.0,118610.0,0.8882269]
[1753025004483,0.542321,118620.0,118610.0,1.10318885]
[1753025004673,0.542321,118620.0,118610.0,0.8882269]
[1753025004877,0.542321,118620.0,118610.0,1.10318885]
[1753025005183,0.70354809,118620.0,118610.0,1.04945399]
[1753025005583,0.70354809,118620.0,118610.0,1.07184399]
[1753025005879,0.542321,118620.0,118610.0,1.07184399]
[1753025006381,0.542321,118620.0,118610.0,1.2168908]
[1753025006883,0.542321,118620.0,118610.0,1.2327208]
[1753025007283,0.542321,118620.0,118610.0,1.28645479]
[1753025008884,0.542321,118620.0,118610.0,0.69741479]
[1753025009087,0.542321,118620.0,118610.0,1.28685479]
[1753025009584,0.542321,118620.0,118610.0,1.27102479]
[1753025009979,0.542321,118620.0,118610.0,1.06360879]
[1753025011381,0.542321,118620.0,118610.0,0.82625771]
[1753025011886,0.542321,118620.0,118610.0,1.04121879]
[1753025012484,0.542321,118620.0,118610.0,0.99480381]